[Event "Irish Championship 2026"]
[Site "Talbot Hotel Stillorgan, Co.Dublin, IE"]
[Date "2026.08.08"]
[Round "8"]
[White "Hayes, Peter J."]
[Black "Paibir, Atharva"]
[Result "1/2-1/2"]
[Board "74"]
[TimeControl "40/5400+30:1800+30"]
[WhiteFideId "2502569"]
[BlackFideId "2512882"]
[WhiteElo "2073"]
[BlackElo "2067"]
[WhiteClock "0:08:03"]
[BlackClock "0:15:00"]
[Variant "Standard"]
[EndDate "2026.08.08"]
[EndTime "19:34:22"]

1. d4 {[%clk 1:30:51]}  Nf6 {[%clk 1:30:55]} 2. Nf3 {[%clk 1:31:13]}  e6 {[%clk 1:31:17]} 3. Bg5 {[%clk 1:31:27]}  d5 {[%clk 1:30:42]}
4. c4 {[%clk 1:31:50]}  h6 {[%clk 1:30:45]} 5. Bh4 {[%clk 1:31:57]}  Bb4+ {[%clk 1:30:59]} 6. Nc3 {[%clk 1:29:23]}  g5 {[%clk 1:25:17]}
7. Bg3 {[%clk 1:29:43]}  Ne4 {[%clk 1:25:39]} 8. Nd2 {[%clk 1:25:24]}  Nxc3 {[%clk 1:05:20]} 9. bxc3 {[%clk 1:25:49]}  Bxc3 {[%clk 1:05:00]}
10. Rc1 {[%clk 1:26:08]}  Ba5 {[%clk 0:58:19]} 11. e3 {[%clk 1:23:11]}  c6 {[%clk 0:57:20]} 12. Be5 {[%clk 1:23:12]}  Rg8 {[%clk 0:55:04]}
13. Bd3 {[%clk 1:12:52]}  Nd7 {[%clk 0:54:28]} 14. Bg3 {[%clk 1:12:48]}  Nf6 {[%clk 0:50:46]} 15. O-O {[%clk 1:07:41]}  Bc7 {[%clk 0:43:12]}
16. Qf3 {[%clk 0:58:52]}  g4 {[%clk 0:32:04]} 17. Bxc7 {[%clk 0:59:17]}  gxf3 {[%clk 0:32:17]} 18. Bxd8 {[%clk 0:59:42]}  fxg2 {[%clk 0:31:57]}
19. Bxf6 {[%clk 0:59:41]}  gxf1=Q+ {[%clk 0:31:48]} 20. Kxf1 {[%clk 1:00:03]}  Kd7 {[%clk 0:25:51]} 21. Nf3 {[%clk 0:58:41]}  dxc4 {[%clk 0:25:49]}
22. Rxc4 {[%clk 0:56:32]}  Kc7 {[%clk 0:15:50]} 23. Ne5 {[%clk 0:47:30]}  Rf8 {[%clk 0:23:38]} 24. Bg7 {[%clk 0:45:31]}  Rg8 {[%clk 0:22:11]}
25. Bxh6 {[%clk 0:45:16]}  f6 {[%clk 0:22:32]} 26. Nf7 {[%clk 0:43:49]}  e5 {[%clk 0:22:22]} 27. dxe5 {[%clk 0:35:57]}  Be6 {[%clk 0:22:00]}
28. Bf4 {[%clk 0:35:16]}  fxe5 {[%clk 0:06:36]} 29. Bxe5+ {[%clk 0:34:27]}  Kd7 {[%clk 0:03:36]} 30. Rd4+ {[%clk 0:34:02]}  Ke7 {[%clk 0:03:59]}
31. Nh6 {[%clk 0:31:03]}  Rg5 {[%clk 0:02:21]} 32. Bf4 {[%clk 0:29:26]}  Ra5 {[%clk 0:01:24]} 33. a4 {[%clk 0:21:46]}  Rd8 {[%clk 0:01:12]}
34. Rxd8 {[%clk 0:19:18]}  Kxd8 {[%clk 0:01:41]} 35. h4 {[%clk 0:18:09]}  b5 {[%clk 0:01:18]} 36. axb5 {[%clk 0:17:59]}  cxb5 {[%clk 0:01:46]}
37. Bd6 {[%clk 0:15:18]}  Ra6 {[%clk 0:02:00]} 38. Bf4 {[%clk 0:15:14]}  Rb6 {[%clk 0:01:34]} 39. h5 {[%clk 0:14:38]}  b4 {[%clk 0:00:14]}
40. Nf5 {[%clk 0:14:26]}  b3 {[%clk 0:00:33]} 41. h6 {[%clk 0:09:21]}  Bg8 {[%clk 0:30:07]} 42. Bg5+ {[%clk 0:37:13]}  Ke8 {[%clk 0:24:29]}
43. Ne7 {[%clk 0:17:45]}  b2 {[%clk 0:19:09]} 44. Nxg8 {[%clk 0:15:36]}  b1=Q+ {[%clk 0:18:25]} 45. Bxb1 {[%clk 0:16:01]}  Rxb1+ {[%clk 0:18:49]}
46. Ke2 {[%clk 0:15:04]}  Kf7 {[%clk 0:18:31]} 47. Ne7 {[%clk 0:14:55]}  a5 {[%clk 0:18:13]} 48. Kd3 {[%clk 0:07:43]}  a4 {[%clk 0:16:01]}
49. Nf5 {[%clk 0:03:56]}  Kg6 {[%clk 0:10:40]} 50. h7 {[%clk 0:03:48]}  Kxh7 {[%clk 0:09:56]} 51. Nd4 {[%clk 0:03:44]}  Kg6 {[%clk 0:08:40]}
52. Be7 {[%clk 0:04:10]}  Kf7 {[%clk 0:06:49]} 53. Ba3 {[%clk 0:04:29]}  Kf6 {[%clk 0:07:05]} 54. f4 {[%clk 0:04:42]}  Rd1+ {[%clk 0:06:21]}
55. Kc3 {[%clk 0:04:36]}  Re1 {[%clk 0:04:21]} 56. Kd2 {[%clk 0:04:43]}  Rb1 {[%clk 0:03:15]} 57. Bc5 {[%clk 0:04:48]}  Rb2+ {[%clk 0:02:57]}
58. Kd3 {[%clk 0:05:09]}  Rb1 {[%clk 0:03:17]} 59. Kc3 {[%clk 0:04:44]}  Rc1+ {[%clk 0:03:19]} 60. Kb4 {[%clk 0:04:28]}  a3 {[%clk 0:03:28]}
61. Nb3 {[%clk 0:04:40]}  Rf1 {[%clk 0:02:26]} 62. Kxa3 {[%clk 0:04:47]}  Kf5 {[%clk 0:02:47]} 63. Nd2 {[%clk 0:04:06]}  Rxf4 {[%clk 0:01:05]}
64. exf4 {[%clk 0:03:53]}  Kxf4 {[%clk 0:01:29]} 65. Kb4 {[%clk 0:03:55]}  Ke5 {[%clk 0:01:48]} 66. Kc4 {[%clk 0:03:54]}  Ke6 {[%clk 0:02:09]}
67. Nf3 {[%clk 0:04:15]}  Kf5 {[%clk 0:02:32]} 68. Kd4 {[%clk 0:03:55]}  Kf4 {[%clk 0:02:53]} 69. Nd2 {[%clk 0:04:09]}  Kf5 {[%clk 0:03:16]}
70. Bd6 {[%clk 0:04:23]}  Ke6 {[%clk 0:03:43]} 71. Be5 {[%clk 0:04:26]}  Kf5 {[%clk 0:03:27]} 72. Nb3 {[%clk 0:04:35]}  Kg4 {[%clk 0:03:38]}
73. Ke4 {[%clk 0:04:59]}  Kg5 {[%clk 0:04:04]} 74. Nd4 {[%clk 0:05:00]}  Kg6 {[%clk 0:04:29]} 75. Nb5 {[%clk 0:04:26]}  Kg5 {[%clk 0:04:31]}
76. Nd4 {[%clk 0:04:24]}  Kg6 {[%clk 0:04:55]} 77. Kf4 {[%clk 0:04:45]}  Kf7 {[%clk 0:05:15]} 78. Kf5 {[%clk 0:05:03]}  Ke7 {[%clk 0:05:41]}
79. Bf4 {[%clk 0:05:04]}  Kd7 {[%clk 0:05:48]} 80. Kf6 {[%clk 0:04:18]}  Kc8 {[%clk 0:06:04]} 81. Ke6 {[%clk 0:04:43]}  Kb7 {[%clk 0:06:29]}
82. Bd6 {[%clk 0:04:56]}  Kc8 {[%clk 0:06:39]} 83. Bb4 {[%clk 0:04:17]}  Kc7 {[%clk 0:06:55]} 84. Ba5+ {[%clk 0:04:39]}  Kc8 {[%clk 0:06:54]}
85. Kd6 {[%clk 0:04:46]}  Kb7 {[%clk 0:07:07]} 86. Bc7 {[%clk 0:04:59]}  Kc8 {[%clk 0:07:15]} 87. Nb3 {[%clk 0:05:25]}  Kb7 {[%clk 0:07:40]}
88. Ba5 {[%clk 0:05:44]}  Ka7 {[%clk 0:06:58]} 89. Nc5 {[%clk 0:05:59]}  Kb8 {[%clk 0:08:05]} 90. Kc6 {[%clk 0:05:42]}  Ka7 {[%clk 0:08:06]}
91. Bb6+ {[%clk 0:06:07]}  Ka8 {[%clk 0:08:21]} 92. Ne6 {[%clk 0:06:29]}  Kb8 {[%clk 0:08:44]} 93. Nc7 {[%clk 0:06:51]}  Kc8 {[%clk 0:09:10]}
94. Ba7 {[%clk 0:06:59]}  Kd8 {[%clk 0:09:36]} 95. Nd5 {[%clk 0:05:19]}  Ke8 {[%clk 0:09:53]} 96. Kd6 {[%clk 0:04:37]}  Kf7 {[%clk 0:10:03]}
97. Ke5 {[%clk 0:04:54]}  Kg6 {[%clk 0:10:21]} 98. Nf6 {[%clk 0:04:58]}  Kg5 {[%clk 0:10:24]} 99. Bf2 {[%clk 0:05:09]}  Kg6 {[%clk 0:10:41]}
100. Ke6 {[%clk 0:05:10]}  Kg5 {[%clk 0:11:06]} 101. Bg3 {[%clk 0:05:32]}  Kg6 {[%clk 0:10:35]} 102. Bf4 {[%clk 0:05:54]}  Kg7 {[%clk 0:10:58]}
103. Ng4 {[%clk 0:05:50]}  Kg6 {[%clk 0:11:22]} 104. Ne5 {[%clk 0:05:59]}  Kh5 {[%clk 0:11:37]} 105. Bg3 {[%clk 0:06:08]}  Kg5 {[%clk 0:12:01]}
106. Kd5 {[%clk 0:06:21]}  Kf5 {[%clk 0:12:25]} 107. Bh2 {[%clk 0:05:50]}  Kf6 {[%clk 0:12:42]} 108. Nf3 {[%clk 0:06:25]}  Kf5 {[%clk 0:13:04]}
109. Nd4 {[%clk 0:06:51]}  Kg4 {[%clk 0:13:29]} 110. Ke4 {[%clk 0:07:10]}  Kh3 {[%clk 0:13:51]} 111. Bf4 {[%clk 0:07:29]}  Kg2 {[%clk 0:14:17]}
112. Ke3 {[%clk 0:07:47]}  Kf1 {[%clk 0:14:37]} 113. Nf5 {[%clk 0:08:03]}  Kg2 {[%clk 0:15:00]} 114. Ke4 {[%clk 0:07:35]} 1/2-1/2

[Event "Irish Championship 2026"]
[Site "Talbot Hotel Stillorgan, Co.Dublin, IE"]
[Date "2026.08.08"]
[Round "8"]
[White "Healy, John"]
[Black "Mulukutla, Ayaansh"]
[Result "1-0"]
[Board "77"]
[TimeControl "40/5400+30:1800+30"]
[WhiteFideId "2500965"]
[BlackFideId "33391998"]
[WhiteElo "1928"]
[BlackElo "1839"]
[WhiteClock "0:33:37"]
[BlackClock "0:20:28"]
[Variant "Standard"]
[EndDate "2026.08.08"]
[EndTime "16:41:05"]

1. d4 {[%clk 1:30:29]}  d5 {[%clk 1:30:48]} 2. Nf3 {[%clk 1:30:53]}  Nf6 {[%clk 1:30:59]} 3. e3 {[%clk 1:31:07]}  e6 {[%clk 1:30:25]}
4. Bd3 {[%clk 1:31:10]}  c5 {[%clk 1:29:19]} 5. b3 {[%clk 1:31:21]}  Nc6 {[%clk 1:28:37]} 6. a3 {[%clk 1:31:26]}  Qb6 {[%clk 1:21:38]}
7. dxc5 {[%clk 1:30:22]}  Bxc5 {[%clk 1:21:58]} 8. Bb2 {[%clk 1:30:43]}  Bd7 {[%clk 1:20:26]} 9. O-O {[%clk 1:30:54]}  h5 {[%clk 1:16:28]}
10. Nbd2 {[%clk 1:30:10]}  O-O-O {[%clk 1:04:50]} 11. Qe2 {[%clk 1:26:23]}  a5 {[%clk 0:55:46]} 12. b4 {[%clk 1:13:03]}  Bd6 {[%clk 0:52:49]}
13. c4 {[%clk 1:13:06]}  Qa7 {[%clk 0:41:17]} 14. c5 {[%clk 1:04:59]}  Be7 {[%clk 0:39:31]} 15. b5 {[%clk 0:59:05]}  Nb8 {[%clk 0:33:18]}
16. Bd4 {[%clk 0:59:27]}  Qa8 {[%clk 0:32:02]} 17. Rfc1 {[%clk 0:57:36]}  Rdf8 {[%clk 0:29:22]} 18. c6 {[%clk 0:56:42]}  bxc6 {[%clk 0:29:04]}
19. bxc6 {[%clk 0:57:07]}  Nxc6 {[%clk 0:28:07]} 20. Ne5 {[%clk 0:57:04]}  Kd8 {[%clk 0:28:17]} 21. Nxc6+ {[%clk 0:57:24]}  Bxc6 {[%clk 0:28:21]}
22. Bb6+ {[%clk 0:57:47]}  Kd7 {[%clk 0:27:41]} 23. Nf3 {[%clk 0:38:07]}  Bd6 {[%clk 0:25:49]} 24. Bb5 {[%clk 0:38:07]}  Bxb5 {[%clk 0:24:11]}
25. Qxb5+ {[%clk 0:34:24]}  Ke7 {[%clk 0:24:17]} 26. Bc7 {[%clk 0:33:32]}  Rc8 {[%clk 0:22:21]} 27. Qb6 {[%clk 0:33:09]}  Ne8 {[%clk 0:20:07]}
28. Bxd6+ {[%clk 0:33:12]}  Nxd6 {[%clk 0:20:28]} 29. Rc7+ {[%clk 0:33:37]} 1-0

[Event "Irish Championship 2026"]
[Site "Talbot Hotel Stillorgan, Co.Dublin, IE"]
[Date "2026.08.08"]
[Round "8"]
[White "Stokes, Stephen"]
[Black "OBrien, James Joseph"]
[Result "1/2-1/2"]
[Board "78"]
[TimeControl "40/5400+30:1800+30"]
[WhiteFideId "2503530"]
[BlackFideId "2518813"]
[WhiteElo "1885"]
[BlackElo "1914"]
[WhiteClock "0:10:12"]
[BlackClock "0:03:43"]
[Variant "Standard"]
[EndDate "2026.08.08"]
[EndTime "18:53:40"]

1. f4 {[%clk 1:30:57]}  Nf6 {[%clk 1:29:41]} 2. Nf3 {[%clk 1:31:19]}  c5 {[%clk 1:29:00]} 3. e3 {[%clk 1:31:31]}  g6 {[%clk 1:22:15]}
4. b3 {[%clk 1:30:44]}  Bg7 {[%clk 1:22:27]} 5. Bb2 {[%clk 1:31:06]}  d6 {[%clk 1:19:18]} 6. Be2 {[%clk 1:30:40]}  b6 {[%clk 1:15:00]}
7. Bb5+ {[%clk 1:28:41]}  Bd7 {[%clk 1:14:22]} 8. Bxd7+ {[%clk 1:27:50]}  Qxd7 {[%clk 1:13:22]} 9. O-O {[%clk 1:27:19]}  O-O {[%clk 1:10:28]}
10. Qe2 {[%clk 1:22:34]}  Nc6 {[%clk 1:05:26]} 11. d3 {[%clk 1:12:53]}  b5 {[%clk 0:52:18]} 12. Nbd2 {[%clk 1:08:20]}  Nd5 {[%clk 0:47:03]}
13. Bxg7 {[%clk 1:08:01]}  Kxg7 {[%clk 0:47:17]} 14. Ne4 {[%clk 1:05:52]}  f5 {[%clk 0:44:55]} 15. Nf2 {[%clk 1:04:07]}  Qe6 {[%clk 0:35:52]}
16. Rfe1 {[%clk 1:02:44]}  Nc3 {[%clk 0:33:38]} 17. Qd2 {[%clk 1:02:26]}  Qf6 {[%clk 0:33:28]} 18. e4 {[%clk 0:58:13]}  fxe4 {[%clk 0:29:51]}
19. dxe4 {[%clk 0:56:09]}  b4 {[%clk 0:30:02]} 20. f5 {[%clk 0:49:04]}  gxf5 {[%clk 0:28:21]} 21. exf5 {[%clk 0:49:21]}  Qxf5 {[%clk 0:27:38]}
22. Ng5 {[%clk 0:47:23]}  Ne5 {[%clk 0:22:59]} 23. Nge4 {[%clk 0:36:56]}  Kh8 {[%clk 0:19:17]} 24. a3 {[%clk 0:35:08]}  Rg8 {[%clk 0:17:58]}
25. Ng3 {[%clk 0:34:18]}  Qf6 {[%clk 0:11:15]} 26. axb4 {[%clk 0:33:08]}  cxb4 {[%clk 0:11:42]} 27. Qe3 {[%clk 0:32:30]}  a5 {[%clk 0:09:43]}
28. Rf1 {[%clk 0:31:08]}  Qg5 {[%clk 0:09:03]} 29. Qxg5 {[%clk 0:27:25]}  Rxg5 {[%clk 0:09:27]} 30. Nfe4 {[%clk 0:27:44]}  Nxe4 {[%clk 0:09:20]}
31. Nxe4 {[%clk 0:27:56]}  Rg4 {[%clk 0:08:24]} 32. Nd2 {[%clk 0:27:53]}  Kg7 {[%clk 0:06:21]} 33. Nf3 {[%clk 0:26:16]}  Nxf3+ {[%clk 0:06:25]}
34. Rxf3 {[%clk 0:26:38]}  Rg5 {[%clk 0:05:24]} 35. Raf1 {[%clk 0:26:26]}  Re8 {[%clk 0:03:28]} 36. Re3 {[%clk 0:26:31]}  e6 {[%clk 0:01:38]}
37. Rd3 {[%clk 0:26:14]}  Rd8 {[%clk 0:01:34]} 38. Re3 {[%clk 0:26:23]}  Re8 {[%clk 0:00:48]} 39. Rd3 {[%clk 0:26:45]}  Rd5 {[%clk 0:00:37]}
40. Rg3+ {[%clk 0:15:19]}  Kh8 {[%clk 0:01:03]} 41. Rf7 {[%clk 0:15:16]}  Rf5 {[%clk 0:24:47]} 42. Rd7 {[%clk 0:43:10]}  Ref8 {[%clk 0:24:09]}
43. h3 {[%clk 0:42:53]}  Rg8 {[%clk 0:16:59]} 44. Rxg8+ {[%clk 0:40:21]}  Kxg8 {[%clk 0:16:08]} 45. Rxd6 {[%clk 0:40:44]}  Rc5 {[%clk 0:15:35]}
46. Rxe6 {[%clk 0:33:28]}  Rxc2 {[%clk 0:15:56]} 47. Re5 {[%clk 0:33:29]}  Rc3 {[%clk 0:14:27]} 48. Rxa5 {[%clk 0:33:51]}  Rxb3 {[%clk 0:14:53]}
49. Rb5 {[%clk 0:33:22]}  Rb1+ {[%clk 0:14:35]} 50. Kf2 {[%clk 0:33:03]}  b3 {[%clk 0:14:41]} 51. Rb7 {[%clk 0:31:56]}  b2 {[%clk 0:14:48]}
52. Kg3 {[%clk 0:29:26]}  Kf8 {[%clk 0:09:31]} 53. Kh4 {[%clk 0:17:47]}  Ke8 {[%clk 0:07:36]} 54. Kh5 {[%clk 0:18:10]}  Kd8 {[%clk 0:08:02]}
55. h4 {[%clk 0:18:14]}  Kc8 {[%clk 0:07:46]} 56. Rb3 {[%clk 0:18:32]}  Kc7 {[%clk 0:07:03]} 57. Kh6 {[%clk 0:18:52]}  Kc6 {[%clk 0:04:56]}
58. h5 {[%clk 0:18:26]}  Kc5 {[%clk 0:04:13]} 59. Kxh7 {[%clk 0:17:47]}  Kc4 {[%clk 0:04:30]} 60. Rb8 {[%clk 0:17:05]}  Kc3 {[%clk 0:04:41]}
61. h6 {[%clk 0:10:28]}  Rg1 {[%clk 0:04:47]} 62. Kg7 {[%clk 0:10:00]}  Rxg2+ {[%clk 0:04:45]} 63. Kf7 {[%clk 0:10:00]}  Rf2+ {[%clk 0:03:50]}
64. Kg7 {[%clk 0:10:12]}  Rg2+ {[%clk 0:03:43]} 1/2-1/2

[Event "Irish Championship 2026"]
[Site "Talbot Hotel Stillorgan, Co.Dublin, IE"]
[Date "2026.08.08"]
[Round "8"]
[White "Rai, Oleksii"]
[Black "Field, Lila Quinn"]
[Result "0-1"]
[Board "79"]
[TimeControl "40/5400+30:1800+30"]
[WhiteFideId "2531526"]
[BlackFideId "30941334"]
[WhiteElo "1840"]
[BlackElo "1898"]
[WhiteClock "0:42:12"]
[BlackClock "0:44:40"]
[Variant "Standard"]
[EndDate "2026.08.08"]
[EndTime "16:03:14"]

1. e4 {[%clk 1:30:56]}  e5 {[%clk 1:30:53]} 2. Nf3 {[%clk 1:31:22]}  Nc6 {[%clk 1:31:18]} 3. Bc4 {[%clk 1:31:47]}  Bc5 {[%clk 1:31:41]}
4. d3 {[%clk 1:32:03]}  Nf6 {[%clk 1:32:02]} 5. Nc3 {[%clk 1:32:25]}  a6 {[%clk 1:32:20]} 6. Bg5 {[%clk 1:32:49]}  h6 {[%clk 1:32:40]}
7. Bxf6 {[%clk 1:33:14]}  Qxf6 {[%clk 1:33:01]} 8. Nd5 {[%clk 1:33:38]}  Qd8 {[%clk 1:33:23]} 9. c3 {[%clk 1:33:56]}  d6 {[%clk 1:33:23]}
10. d4 {[%clk 1:34:19]}  Ba7 {[%clk 1:33:41]} 11. dxe5 {[%clk 1:34:39]}  Be6 {[%clk 1:33:53]} 12. exd6 {[%clk 1:33:03]}  Qxd6 {[%clk 1:34:13]}
13. Qe2 {[%clk 1:26:14]}  O-O-O {[%clk 1:33:02]} 14. O-O-O {[%clk 1:22:54]}  Qc5 {[%clk 1:32:16]} 15. Nd4 {[%clk 1:15:53]}  Nxd4 {[%clk 0:55:16]}
16. cxd4 {[%clk 1:14:39]}  Qd6 {[%clk 0:53:38]} 17. Kb1 {[%clk 1:02:35]}  Rhe8 {[%clk 0:49:50]} 18. Rc1 {[%clk 0:44:57]}  Bxd5 {[%clk 0:45:58]}
19. Bxd5 {[%clk 0:42:57]}  Qxd5 {[%clk 0:45:26]} 20. Qg4+ {[%clk 0:42:25]}  Qe6 {[%clk 0:45:16]} 21. Qg3 {[%clk 0:41:37]}  Qxe4+ {[%clk 0:45:00]}
22. Ka1 {[%clk 0:41:55]}  c6 {[%clk 0:44:42]} 23. Qxg7 {[%clk 0:42:12]}  Qg6 {[%clk 0:44:40]} 0-1

[Event "Irish Championship 2026"]
[Site "Talbot Hotel Stillorgan, Co.Dublin, IE"]
[Date "2026.08.08"]
[Round "8"]
[White "Burke, Kevin A."]
[Black "Dash, Shaurya"]
[Result "1/2-1/2"]
[Board "80"]
[TimeControl "40/5400+30:1800+30"]
[WhiteFideId "2501520"]
[BlackFideId "2534789"]
[WhiteElo "1896"]
[BlackElo "1751"]
[WhiteClock "0:01:20"]
[BlackClock "0:03:27"]
[Variant "Standard"]
[EndDate "2026.08.08"]
[EndTime "17:33:40"]

1. e4 {[%clk 1:30:15]}  c5 {[%clk 1:30:54]} 2. c3 {[%clk 1:29:49]}  Nf6 {[%clk 1:31:20]} 3. e5 {[%clk 1:30:16]}  Nd5 {[%clk 1:31:45]}
4. d4 {[%clk 1:30:42]}  d6 {[%clk 1:32:01]} 5. Bc4 {[%clk 1:29:26]}  e6 {[%clk 1:26:04]} 6. Nf3 {[%clk 1:28:49]}  Nc6 {[%clk 1:23:30]}
7. O-O {[%clk 1:27:09]}  Be7 {[%clk 1:19:59]} 8. Qe2 {[%clk 1:24:15]}  O-O {[%clk 1:13:52]} 9. Qe4 {[%clk 1:16:20]}  cxd4 {[%clk 1:00:01]}
10. cxd4 {[%clk 1:12:46]}  dxe5 {[%clk 0:54:57]} 11. dxe5 {[%clk 1:12:00]}  Qc7 {[%clk 0:43:28]} 12. b3 {[%clk 1:03:48]}  f5 {[%clk 0:37:44]}
13. Qe2 {[%clk 0:47:54]}  Rd8 {[%clk 0:36:08]} 14. Bb2 {[%clk 0:46:57]}  a6 {[%clk 0:30:32]} 15. Nc3 {[%clk 0:27:49]}  Nxc3 {[%clk 0:27:30]}
16. Bxc3 {[%clk 0:28:11]}  b5 {[%clk 0:27:45]} 17. Bd3 {[%clk 0:28:00]}  Bb7 {[%clk 0:27:46]} 18. Rac1 {[%clk 0:28:02]}  Rac8 {[%clk 0:24:37]}
19. Bb2 {[%clk 0:26:51]}  Qb6 {[%clk 0:22:27]} 20. Rfd1 {[%clk 0:22:25]}  Rc7 {[%clk 0:18:28]} 21. Bb1 {[%clk 0:20:03]}  Rcd7 {[%clk 0:17:26]}
22. Rxd7 {[%clk 0:16:39]}  Rxd7 {[%clk 0:17:46]} 23. Rd1 {[%clk 0:16:40]}  Qd8 {[%clk 0:16:56]} 24. Rxd7 {[%clk 0:14:39]}  Qxd7 {[%clk 0:17:19]}
25. Qd2 {[%clk 0:10:01]}  Qc7 {[%clk 0:15:30]} 26. h3 {[%clk 0:08:02]}  h6 {[%clk 0:09:23]} 27. Qc3 {[%clk 0:06:03]}  Qb6 {[%clk 0:07:36]}
28. a3 {[%clk 0:05:05]}  b4 {[%clk 0:06:56]} 29. axb4 {[%clk 0:04:37]}  Nxb4 {[%clk 0:07:01]} 30. Bc1 {[%clk 0:01:26]}  Bxf3 {[%clk 0:06:27]}
31. Qxf3 {[%clk 0:01:32]}  Qc5 {[%clk 0:04:25]} 32. Bb2 {[%clk 0:01:20]}  Nd5 {[%clk 0:03:27]} 1/2-1/2

[Event "Irish Championship 2026"]
[Site "Talbot Hotel Stillorgan, Co.Dublin, IE"]
[Date "2026.08.08"]
[Round "8"]
[White "Fitzgerald, Martin"]
[Black "Fox, Anthony"]
[Result "1/2-1/2"]
[Board "81"]
[TimeControl "40/5400+30:1800+30"]
[WhiteFideId "2511177"]
[BlackFideId "2500736"]
[WhiteElo "1891"]
[BlackElo "1876"]
[WhiteClock "0:05:38"]
[BlackClock "0:25:38"]
[Variant "Standard"]
[EndDate "2026.08.08"]
[EndTime "19:03:44"]

1. e4 {[%clk 1:30:59]}  e5 {[%clk 1:30:51]} 2. Nf3 {[%clk 1:31:26]}  Nc6 {[%clk 1:31:12]} 3. d4 {[%clk 1:31:46]}  exd4 {[%clk 1:31:29]}
4. Bc4 {[%clk 1:32:10]}  Nf6 {[%clk 1:31:10]} 5. e5 {[%clk 1:32:25]}  d5 {[%clk 1:30:47]} 6. Bb5 {[%clk 1:32:50]}  Ne4 {[%clk 1:30:58]}
7. Nxd4 {[%clk 1:33:15]}  Bd7 {[%clk 1:31:10]} 8. Bxc6 {[%clk 1:33:23]}  bxc6 {[%clk 1:31:25]} 9. O-O {[%clk 1:33:31]}  Bc5 {[%clk 1:31:15]}
10. f3 {[%clk 1:33:37]}  Ng5 {[%clk 1:30:31]} 11. f4 {[%clk 1:34:03]}  Ne4 {[%clk 1:29:59]} 12. Be3 {[%clk 1:34:25]}  Bb6 {[%clk 1:29:23]}
13. Nd2 {[%clk 1:34:45]}  Nxd2 {[%clk 1:28:05]} 14. Qxd2 {[%clk 1:35:10]}  c5 {[%clk 1:27:39]} 15. Nf3 {[%clk 1:35:30]}  d4 {[%clk 1:27:45]}
16. Bf2 {[%clk 1:35:55]}  Bc6 {[%clk 1:26:54]} 17. Bh4 {[%clk 1:36:15]}  Qd7 {[%clk 1:23:50]} 18. Rad1 {[%clk 1:36:31]}  O-O {[%clk 1:21:47]}
19. f5 {[%clk 1:36:29]}  f6 {[%clk 1:00:30]} 20. e6 {[%clk 1:32:15]}  Qd5 {[%clk 0:56:33]} 21. b3 {[%clk 1:24:37]}  c4 {[%clk 0:44:18]}
22. Kh1 {[%clk 0:58:00]}  c3 {[%clk 0:42:46]} 23. Qc1 {[%clk 0:28:24]}  Bb5 {[%clk 0:42:46]} 24. Rfe1 {[%clk 0:28:18]}  c5 {[%clk 0:39:50]}
25. a4 {[%clk 0:27:14]}  Bc6 {[%clk 0:39:51]} 26. Qf4 {[%clk 0:25:08]}  Rac8 {[%clk 0:39:14]} 27. Qg4 {[%clk 0:23:12]}  Bc7 {[%clk 0:38:41]}
28. Re2 {[%clk 0:11:52]}  a5 {[%clk 0:38:53]} 29. Rde1 {[%clk 0:10:40]}  Rce8 {[%clk 0:38:10]} 30. Bg3 {[%clk 0:05:55]}  Bxg3 {[%clk 0:37:12]}
31. hxg3 {[%clk 0:06:18]}  Re7 {[%clk 0:37:02]} 32. Qf4 {[%clk 0:04:47]}  Rd8 {[%clk 0:36:34]} 33. Rd1 {[%clk 0:04:37]}  Bb7 {[%clk 0:33:17]}
34. Qg4 {[%clk 0:04:04]}  Ba6 {[%clk 0:29:13]} 35. Ree1 {[%clk 0:03:53]}  d3 {[%clk 0:28:23]} 36. cxd3 {[%clk 0:02:37]}  c2 {[%clk 0:28:27]}
37. Rd2 {[%clk 0:00:58]}  Bxd3 {[%clk 0:27:53]} 38. Rc1 {[%clk 0:00:36]}  Rb8 {[%clk 0:21:50]} 39. Ne1 {[%clk 0:00:40]}  Qxf5 {[%clk 0:21:34]}
40. Qxf5 {[%clk 0:00:52]}  Bxf5 {[%clk 0:21:59]} 41. Nxc2 {[%clk 0:24:25]}  Rxe6 {[%clk 0:50:29]} 42. Rd5 {[%clk 0:21:57]}  Bxc2 {[%clk 0:46:22]}
43. Rxc2 {[%clk 0:22:22]}  Rxb3 {[%clk 0:46:09]} 44. Rdxc5 {[%clk 0:18:49]}  Rxg3 {[%clk 0:45:41]} 45. Rxa5 {[%clk 0:19:02]}  h6 {[%clk 0:45:23]}
46. Ra2 {[%clk 0:18:42]}  Ree3 {[%clk 0:45:20]} 47. Rb5 {[%clk 0:16:20]}  Ra3 {[%clk 0:45:19]} 48. Rbb2 {[%clk 0:16:25]}  Rgb3 {[%clk 0:40:46]}
49. Rf2 {[%clk 0:15:13]}  Rb1+ {[%clk 0:38:11]} 50. Kh2 {[%clk 0:15:26]}  Ra1 {[%clk 0:38:31]} 51. Rxa1 {[%clk 0:14:53]}  Rxa1 {[%clk 0:38:55]}
52. Rf4 {[%clk 0:15:18]}  Kf7 {[%clk 0:38:43]} 53. Rb4 {[%clk 0:14:30]}  h5 {[%clk 0:37:59]} 54. Rb7+ {[%clk 0:14:34]}  Kg6 {[%clk 0:37:46]}
55. Ra7 {[%clk 0:10:44]}  Kh6 {[%clk 0:37:54]} 56. a5 {[%clk 0:11:09]}  g6 {[%clk 0:37:47]} 57. a6 {[%clk 0:11:14]}  Kg5 {[%clk 0:38:03]}
58. Ra8 {[%clk 0:10:23]}  Kg4 {[%clk 0:29:26]} 59. a7 {[%clk 0:09:58]}  g5 {[%clk 0:29:09]} 60. Rf8 {[%clk 0:09:15]}  Rxa7 {[%clk 0:29:22]}
61. Rxf6 {[%clk 0:09:31]}  h4 {[%clk 0:29:01]} 62. Rh6 {[%clk 0:08:14]}  Ra3 {[%clk 0:27:48]} 63. Rh8 {[%clk 0:07:59]}  Rg3 {[%clk 0:27:58]}
64. Rh7 {[%clk 0:07:45]}  Kf4 {[%clk 0:27:09]} 65. Rh8 {[%clk 0:07:09]}  Re3 {[%clk 0:25:07]} 66. Rh7 {[%clk 0:07:09]}  Kg4 {[%clk 0:25:15]}
67. Rh8 {[%clk 0:07:05]}  Kf5 {[%clk 0:25:25]} 68. Rh7 {[%clk 0:06:45]}  Kg6 {[%clk 0:25:21]} 69. Rh8 {[%clk 0:07:10]}  Kg7 {[%clk 0:25:26]}
70. Rh5 {[%clk 0:06:37]}  Kg6 {[%clk 0:25:06]} 71. Rh8 {[%clk 0:07:03]}  Re5 {[%clk 0:25:00]} 72. Kh3 {[%clk 0:06:43]}  Re3+ {[%clk 0:25:18]}
73. Kh2 {[%clk 0:07:09]}  Re7 {[%clk 0:23:40]} 74. Kh3 {[%clk 0:07:10]}  Re3+ {[%clk 0:22:54]} 75. Kh2 {[%clk 0:07:25]}  Rb3 {[%clk 0:23:07]}
76. Kg1 {[%clk 0:07:34]}  Kg7 {[%clk 0:22:20]} 77. Rh5 {[%clk 0:07:36]}  Kf6 {[%clk 0:22:31]} 78. Rh8 {[%clk 0:07:23]}  Kg7 {[%clk 0:21:46]}
79. Rh5 {[%clk 0:07:46]}  Kg6 {[%clk 0:22:01]} 80. Rh8 {[%clk 0:08:05]}  Rb7 {[%clk 0:22:20]} 81. Kh2 {[%clk 0:06:21]}  Rh7 {[%clk 0:22:38]}
82. Rxh7 {[%clk 0:04:04]}  Kxh7 {[%clk 0:23:03]} 83. g3 {[%clk 0:04:23]}  hxg3+ {[%clk 0:23:01]} 84. Kxg3 {[%clk 0:04:47]}  Kh6 {[%clk 0:23:11]}
85. Kg4 {[%clk 0:04:54]}  Kg6 {[%clk 0:23:37]} 86. Kg3 {[%clk 0:04:52]}  Kf5 {[%clk 0:23:58]} 87. Kf3 {[%clk 0:05:09]}  g4+ {[%clk 0:24:18]}
88. Kg3 {[%clk 0:05:30]}  Kg5 {[%clk 0:24:38]} 89. Kg2 {[%clk 0:05:33]}  Kf4 {[%clk 0:24:53]} 90. Kf2 {[%clk 0:05:45]}  g3+ {[%clk 0:25:09]}
91. Kg2 {[%clk 0:05:38]}  Kg4 {[%clk 0:25:34]} 92. Kg1 {[%clk 0:05:38]}  Kf3 {[%clk 0:25:38]} 1/2-1/2